[Event "Titled Tuesday Blitz February 14 Early 2023"]
[White "Jimenez, Joaquin"]
[Black "Piesik, Piotr"]
[WhiteFideId "109860"]
[BlackFideId "1136194"]
[WhiteElo "2195"]
[BlackElo "2426"]
[Result "0-1"]
[Round "01"]
[TimeControl "180+2"]
[Date "2023.02.15"]
[WhiteClock "0:00:19"]
[BlackClock "0:00:06"]

1. e4 {[%clk 0:02:59]}  g6 {[%clk 0:02:51]} 2. d4 {[%clk 0:02:58]}  Bg7 {[%clk 0:02:51]} 3. Nc3 {[%clk 0:02:58]}  c6 {[%clk 0:02:51]} 4. Be3 {[%clk 0:02:52]}  d5 {[%clk 0:02:51]} 5. e5 {[%clk 0:02:52]}  Nh6 {[%clk 0:02:52]} 6. Qd2 {[%clk 0:02:50]}  Nf5 {[%clk 0:02:52]} 7. O-O-O {[%clk 0:02:49]}  Nxe3 {[%clk 0:02:51]} 8. fxe3 {[%clk 0:02:49]}  f6 {[%clk 0:02:49]} 9. exf6 {[%clk 0:02:48]}  exf6 {[%clk 0:02:50]} 10. e4 {[%clk 0:02:44]}  O-O {[%clk 0:02:49]} 11. exd5 {[%clk 0:02:44]}  cxd5 {[%clk 0:02:49]} 12. Nf3 {[%clk 0:02:44]}  Nc6 {[%clk 0:02:49]} 13. Kb1 {[%clk 0:02:43]}  Bf5 {[%clk 0:02:45]} 14. Bb5 {[%clk 0:02:35]}  Nb4 {[%clk 0:02:44]} 15. Ba4 {[%clk 0:02:32]}  Rc8 {[%clk 0:02:41]} 16. Bb3 {[%clk 0:02:31]}  Be6 {[%clk 0:02:27]} 17. h4 {[%clk 0:02:29]}  h5 {[%clk 0:02:25]} 18. a3 {[%clk 0:02:21]}  Nc6 {[%clk 0:02:25]} 19. Qd3 {[%clk 0:02:21]}  Kh7 {[%clk 0:02:22]} 20. Rde1 {[%clk 0:02:06]}  Bf5 {[%clk 0:02:12]} 21. Qd2 {[%clk 0:02:06]}  Na5 {[%clk 0:02:11]} 22. Ka2 {[%clk 0:01:56]}  Nc4 {[%clk 0:02:07]} 23. Bxc4 {[%clk 0:01:56]}  Rxc4 {[%clk 0:02:07]} 24. Re2 {[%clk 0:01:48]}  Bh6 {[%clk 0:02:02]} 25. Qe1 {[%clk 0:01:44]}  Rf7 {[%clk 0:01:54]} 26. Rf1 {[%clk 0:01:40]}  Rcc7 {[%clk 0:01:42]} 27. Nh2 {[%clk 0:01:17]}  Rfe7 {[%clk 0:01:31]} 28. Rff2 {[%clk 0:01:15]}  a6 {[%clk 0:01:13]} 29. Rxe7+ {[%clk 0:01:10]}  Rxe7 {[%clk 0:01:13]} 30. Re2 {[%clk 0:01:11]}  Rxe2 {[%clk 0:01:08]} 31. Qxe2 {[%clk 0:01:11]}  Bf4 {[%clk 0:01:07]} 32. g4 {[%clk 0:01:05]}  hxg4 {[%clk 0:01:03]} 33. Nxg4 {[%clk 0:01:05]}  Kg7 {[%clk 0:00:56]} 34. Ne3 {[%clk 0:00:56]}  Bxe3 {[%clk 0:00:53]} 35. Qxe3 {[%clk 0:00:56]}  Bxc2 {[%clk 0:00:53]} 36. Qf3 {[%clk 0:00:46]}  Qd6 {[%clk 0:00:36]} 37. h5 {[%clk 0:00:39]}  gxh5 {[%clk 0:00:32]} 38. Qxh5 {[%clk 0:00:38]}  Bg6 {[%clk 0:00:30]} 39. Qg4 {[%clk 0:00:27]}  Qc6 {[%clk 0:00:30]} 40. Ka1 {[%clk 0:00:23]}  Qe8 {[%clk 0:00:20]} 41. Qg2 {[%clk 0:00:20]}  Qe1+ {[%clk 0:00:15]} 42. Ka2 {[%clk 0:00:20]}  Kh6 {[%clk 0:00:11]} 43. Qxd5 {[%clk 0:00:19]}  Qe7 {[%clk 0:00:09]} 44. Qh1+ {[%clk 0:00:19]}  Kg7 {[%clk 0:00:09]} 45. Qg2 {[%clk 0:00:19]}  Kh7 {[%clk 0:00:09]} 46. d5 {[%clk 0:00:19]}  Bf5 {[%clk 0:00:08]} 47. Qh2+ {[%clk 0:00:19]}  Kg6 {[%clk 0:00:08]} 48. d6 {[%clk 0:00:19]}  Qe6+ {[%clk 0:00:08]} 49. b3 {[%clk 0:00:19]}  Kf7 {[%clk 0:00:06]} 50. Kb2 {[%clk 0:00:19]}  Qe5 {[%clk 0:00:06]} 51. a4 {[%clk 0:00:19]}  Qxh2+ {[%clk 0:00:06]} 0-1


[Site "https://www.chess.com"]

[Event "Titled Tuesday Blitz February 14 Early 2023"]
[White "Postnikov, Daniil"]
[Black "Lacasa Diaz, Jose Antonio"]
[WhiteFideId "4166329"]
[BlackFideId "2203375"]
[WhiteElo "2360"]
[BlackElo "2359"]
[Result "1/2-1/2"]
[Round "01"]
[TimeControl "180+2"]
[Date "2023.02.15"]
[WhiteClock "0:00:05"]
[BlackClock "0:00:11"]

1. e4 {[%clk 0:02:55]}  c5 {[%clk 0:02:59]} 2. a3 {[%clk 0:02:55]}  g6 {[%clk 0:02:58]} 3. h4 {[%clk 0:02:53]}  Nf6 {[%clk 0:02:57]} 4. e5 {[%clk 0:02:52]}  Nh5 {[%clk 0:02:55]} 5. Be2 {[%clk 0:02:52]}  Nf4 {[%clk 0:02:44]} 6. d4 {[%clk 0:02:50]}  Nxe2 {[%clk 0:02:38]} 7. Nxe2 {[%clk 0:02:51]}  cxd4 {[%clk 0:02:38]} 8. h5 {[%clk 0:02:46]}  Bg7 {[%clk 0:02:35]} 9. Nxd4 {[%clk 0:02:35]}  Bxe5 {[%clk 0:02:25]} 10. Nc3 {[%clk 0:02:28]}  Nc6 {[%clk 0:02:22]} 11. Be3 {[%clk 0:02:20]}  d6 {[%clk 0:02:14]} 12. Qd2 {[%clk 0:02:15]}  Qa5 {[%clk 0:01:47]} 13. O-O-O {[%clk 0:01:51]}  Bd7 {[%clk 0:01:41]} 14. hxg6 {[%clk 0:01:40]}  hxg6 {[%clk 0:01:40]} 15. Rxh8+ {[%clk 0:01:38]}  Bxh8 {[%clk 0:01:41]} 16. Rh1 {[%clk 0:01:36]}  O-O-O {[%clk 0:01:40]} 17. Rh7 {[%clk 0:01:29]}  Nxd4 {[%clk 0:01:23]} 18. Bxd4 {[%clk 0:01:23]}  Bxd4 {[%clk 0:01:21]} 19. Qxd4 {[%clk 0:01:24]}  Be6 {[%clk 0:01:21]} 20. a4 {[%clk 0:00:52]}  Qc5 {[%clk 0:01:12]} 21. Qh4 {[%clk 0:00:42]}  d5 {[%clk 0:01:05]} 22. Rh8 {[%clk 0:00:36]}  a6 {[%clk 0:00:58]} 23. Rxd8+ {[%clk 0:00:30]}  Kxd8 {[%clk 0:00:58]} 24. Qh8+ {[%clk 0:00:31]}  Kc7 {[%clk 0:00:51]} 25. Qe5+ {[%clk 0:00:30]}  Qd6 {[%clk 0:00:51]} 26. Qd4 {[%clk 0:00:30]}  Qb6 {[%clk 0:00:49]} 27. Qe5+ {[%clk 0:00:18]}  Qd6 {[%clk 0:00:49]} 28. Qd4 {[%clk 0:00:16]}  f6 {[%clk 0:00:50]} 29. f3 {[%clk 0:00:13]}  g5 {[%clk 0:00:45]} 30. b4 {[%clk 0:00:12]}  Bf7 {[%clk 0:00:40]} 31. b5 {[%clk 0:00:07]}  e5 {[%clk 0:00:36]} 32. Qa7 {[%clk 0:00:07]}  Qb6 {[%clk 0:00:23]} 33. Qa8 {[%clk 0:00:06]}  d4 {[%clk 0:00:20]} 34. Ne4 {[%clk 0:00:06]}  axb5 {[%clk 0:00:19]} 35. axb5 {[%clk 0:00:05]}  Qxb5 {[%clk 0:00:16]} 36. Qf8 {[%clk 0:00:05]}  Qf1+ {[%clk 0:00:16]} 37. Kb2 {[%clk 0:00:05]}  Qb5+ {[%clk 0:00:16]} 38. Kc1 {[%clk 0:00:05]}  Qf1+ {[%clk 0:00:10]} 39. Kb2 {[%clk 0:00:05]}  Qb5+ {[%clk 0:00:11]} 40. Kc1 {[%clk 0:00:05]} 1/2-1/2


[Site "https://www.chess.com"]

[Event "Titled Tuesday Blitz February 14 Early 2023"]
[White "Wilson, Elvin"]
[Black "Janaszak, Dawid"]
[WhiteFideId "2014874"]
[BlackFideId "1119206"]
[WhiteElo "2183"]
[BlackElo "2316"]
[Result "1/2-1/2"]
[Round "01"]
[TimeControl "180+2"]
[Date "2023.02.15"]
[WhiteClock "0:00:13"]
[BlackClock "0:01:25"]

1. c4 {[%clk 0:02:57]}  e6 {[%clk 0:02:58]} 2. g3 {[%clk 0:02:56]}  d5 {[%clk 0:02:59]} 3. Bg2 {[%clk 0:02:56]}  Nf6 {[%clk 0:02:59]} 4. Nf3 {[%clk 0:02:56]}  c5 {[%clk 0:02:59]} 5. O-O {[%clk 0:02:55]}  Nc6 {[%clk 0:02:59]} 6. b3 {[%clk 0:02:55]}  Be7 {[%clk 0:02:58]} 7. e3 {[%clk 0:02:54]}  O-O {[%clk 0:02:58]} 8. Bb2 {[%clk 0:02:54]}  b6 {[%clk 0:02:55]} 9. cxd5 {[%clk 0:02:43]}  Nxd5 {[%clk 0:02:56]} 10. d4 {[%clk 0:02:39]}  cxd4 {[%clk 0:02:56]} 11. Nxd4 {[%clk 0:02:38]}  Nxd4 {[%clk 0:02:56]} 12. Bxd4 {[%clk 0:02:38]}  Bb7 {[%clk 0:02:53]} 13. Nc3 {[%clk 0:02:34]}  Rc8 {[%clk 0:02:43]} 14. Nxd5 {[%clk 0:02:10]}  Bxd5 {[%clk 0:02:42]} 15. Qg4 {[%clk 0:02:11]}  Bf6 {[%clk 0:02:22]} 16. Bxf6 {[%clk 0:01:57]}  Qxf6 {[%clk 0:02:23]} 17. Bxd5 {[%clk 0:01:57]}  exd5 {[%clk 0:02:24]} 18. Rad1 {[%clk 0:01:46]}  Rc2 {[%clk 0:02:23]} 19. a4 {[%clk 0:01:33]}  Rd8 {[%clk 0:02:23]} 20. Rd4 {[%clk 0:01:30]}  h6 {[%clk 0:02:12]} 21. Qd1 {[%clk 0:01:29]}  Rdc8 {[%clk 0:01:56]} 22. Rxd5 {[%clk 0:01:22]}  Qc3 {[%clk 0:01:55]} 23. Rd3 {[%clk 0:01:19]}  Qb2 {[%clk 0:01:54]} 24. Rd8+ {[%clk 0:01:15]}  Rxd8 {[%clk 0:01:54]} 25. Qxd8+ {[%clk 0:01:14]}  Kh7 {[%clk 0:01:54]} 26. Qd3+ {[%clk 0:01:14]}  g6 {[%clk 0:01:54]} 27. Qd5 {[%clk 0:01:11]}  Kg7 {[%clk 0:01:51]} 28. h4 {[%clk 0:01:02]}  h5 {[%clk 0:01:51]} 29. e4 {[%clk 0:00:34]}  Rd2 {[%clk 0:01:50]} 30. Qc4 {[%clk 0:00:29]}  Re2 {[%clk 0:01:49]} 31. Qd5 {[%clk 0:00:12]}  Qf6 {[%clk 0:01:38]} 32. e5 {[%clk 0:00:11]}  Rxe5 {[%clk 0:01:35]} 33. Qd4 {[%clk 0:00:10]}  Rc5 {[%clk 0:01:26]} 34. Qxf6+ {[%clk 0:00:10]}  Kxf6 {[%clk 0:01:27]} 35. Rd1 {[%clk 0:00:10]}  Rc3 {[%clk 0:01:27]} 36. Rd7 {[%clk 0:00:10]}  Rxb3 {[%clk 0:01:23]} 37. Rxa7 {[%clk 0:00:10]}  Ke6 {[%clk 0:01:23]} 38. Ra6 {[%clk 0:00:10]}  Ke5 {[%clk 0:01:23]} 39. a5 {[%clk 0:00:11]}  b5 {[%clk 0:01:23]} 40. Rb6 {[%clk 0:00:11]}  b4 {[%clk 0:01:20]} 41. a6 {[%clk 0:00:12]}  Ra3 {[%clk 0:01:21]} 42. a7 {[%clk 0:00:12]}  Ra1+ {[%clk 0:01:19]} 43. Kg2 {[%clk 0:00:11]}  Rxa7 {[%clk 0:01:20]} 44. Rxb4 {[%clk 0:00:11]}  Kf6 {[%clk 0:01:20]} 45. Rf4+ {[%clk 0:00:11]}  Ke6 {[%clk 0:01:20]} 46. Re4+ {[%clk 0:00:12]}  Kf6 {[%clk 0:01:20]} 47. Rf4+ {[%clk 0:00:12]}  Kg7 {[%clk 0:01:21]} 48. Re4 {[%clk 0:00:12]}  Ra3 {[%clk 0:01:21]} 49. Rf4 {[%clk 0:00:12]}  Rc3 {[%clk 0:01:22]} 50. Re4 {[%clk 0:00:12]}  f6 {[%clk 0:01:22]} 51. Rf4 {[%clk 0:00:13]}  g5 {[%clk 0:01:23]} 52. Re4 {[%clk 0:00:13]}  Kg6 {[%clk 0:01:22]} 53. hxg5 {[%clk 0:00:13]}  fxg5 {[%clk 0:01:22]} 54. Re6+ {[%clk 0:00:13]}  Kf5 {[%clk 0:01:23]} 55. Rh6 {[%clk 0:00:13]}  Kg4 {[%clk 0:01:22]} 56. Rg6 {[%clk 0:00:10]}  Kf5 {[%clk 0:01:21]} 57. Rh6 {[%clk 0:00:11]}  Kg4 {[%clk 0:01:21]} 58. Rg6 {[%clk 0:00:11]}  h4 {[%clk 0:01:21]} 59. gxh4 {[%clk 0:00:10]}  Kxh4 {[%clk 0:01:22]} 60. Rf6 {[%clk 0:00:10]}  g4 {[%clk 0:01:22]} 61. Rh6+ {[%clk 0:00:10]}  Kg5 {[%clk 0:01:23]} 62. Rh8 {[%clk 0:00:11]}  Rc2 {[%clk 0:01:22]} 63. Rg8+ {[%clk 0:00:11]}  Kf4 {[%clk 0:01:23]} 64. Rf8+ {[%clk 0:00:11]}  Ke4 {[%clk 0:01:23]} 65. Re8+ {[%clk 0:00:11]}  Kf5 {[%clk 0:01:23]} 66. Rf8+ {[%clk 0:00:12]}  Kg5 {[%clk 0:01:24]} 67. Rg8+ {[%clk 0:00:12]}  Kf4 {[%clk 0:01:24]} 68. Rf8+ {[%clk 0:00:12]}  Kg5 {[%clk 0:01:25]} 69. Rg8+ {[%clk 0:00:13]} 1/2-1/2


[Site "https://www.chess.com"]

[Event "Titled Tuesday Blitz February 14 Early 2023"]
[White "Weetik, Vjacheslav"]
[Black "Cepo, Toni"]
[WhiteFideId "4153472"]
[BlackFideId "4675916"]
[WhiteElo "2423"]
[BlackElo "2145"]
[Result "1-0"]
[Round "01"]
[TimeControl "180+2"]
[Date "2023.02.15"]
[WhiteClock "0:00:06"]
[BlackClock "0:00:02"]

1. d4 {[%clk 0:02:57]}  Nf6 {[%clk 0:02:58]} 2. c4 {[%clk 0:02:47]}  e6 {[%clk 0:02:55]} 3. Nc3 {[%clk 0:02:44]}  d5 {[%clk 0:02:55]} 4. cxd5 {[%clk 0:02:43]}  exd5 {[%clk 0:02:54]} 5. Bg5 {[%clk 0:02:43]}  c6 {[%clk 0:02:52]} 6. e3 {[%clk 0:02:43]}  Bf5 {[%clk 0:02:52]} 7. Qf3 {[%clk 0:02:42]}  Bg6 {[%clk 0:02:48]} 8. Bxf6 {[%clk 0:02:41]}  Qxf6 {[%clk 0:02:48]} 9. Qxf6 {[%clk 0:02:41]}  gxf6 {[%clk 0:02:48]} 10. Nf3 {[%clk 0:02:41]}  Nd7 {[%clk 0:02:48]} 11. g3 {[%clk 0:02:34]}  Bb4 {[%clk 0:02:46]} 12. Nh4 {[%clk 0:02:18]}  Nb6 {[%clk 0:02:30]} 13. a3 {[%clk 0:01:57]}  Be7 {[%clk 0:02:17]} 14. Kd2 {[%clk 0:01:40]}  Nc8 {[%clk 0:02:10]} 15. Bd3 {[%clk 0:01:36]}  Nd6 {[%clk 0:02:09]} 16. Rac1 {[%clk 0:01:27]}  Bxd3 {[%clk 0:01:29]} 17. Kxd3 {[%clk 0:01:27]}  f5 {[%clk 0:01:30]} 18. Ng2 {[%clk 0:01:08]}  Ne4 {[%clk 0:01:22]} 19. Ke2 {[%clk 0:01:03]}  Kd7 {[%clk 0:01:13]} 20. Rc2 {[%clk 0:01:01]}  Bd6 {[%clk 0:01:08]} 21. Rhc1 {[%clk 0:00:55]}  Rae8 {[%clk 0:01:06]} 22. Nh4 {[%clk 0:00:52]}  f4 {[%clk 0:00:57]} 23. Nf5 {[%clk 0:00:36]}  fxg3 {[%clk 0:00:36]} 24. hxg3 {[%clk 0:00:33]}  Re6 {[%clk 0:00:22]} 25. Nxe4 {[%clk 0:00:27]}  Rxe4 {[%clk 0:00:20]} 26. Rh1 {[%clk 0:00:26]}  Re6 {[%clk 0:00:20]} 27. Rh5 {[%clk 0:00:25]}  Bf8 {[%clk 0:00:17]} 28. Rc1 {[%clk 0:00:22]}  h6 {[%clk 0:00:18]} 29. Rch1 {[%clk 0:00:22]}  Rg6 {[%clk 0:00:18]} 30. f4 {[%clk 0:00:17]}  Ke6 {[%clk 0:00:18]} 31. Kf3 {[%clk 0:00:16]}  Rhg8 {[%clk 0:00:15]} 32. R1h3 {[%clk 0:00:13]}  f6 {[%clk 0:00:14]} 33. Nh4 {[%clk 0:00:10]}  Rg4 {[%clk 0:00:09]} 34. Nf5 {[%clk 0:00:10]}  R4g6 {[%clk 0:00:06]} 35. a4 {[%clk 0:00:11]}  Rh8 {[%clk 0:00:04]} 36. b3 {[%clk 0:00:08]}  b5 {[%clk 0:00:04]} 37. Nh4 {[%clk 0:00:07]}  Rg7 {[%clk 0:00:03]} 38. f5+ {[%clk 0:00:07]}  Kd6 {[%clk 0:00:02]} 39. Ng6 {[%clk 0:00:08]}  Rhg8 {[%clk 0:00:02]} 40. Rxh6 {[%clk 0:00:08]}  Be7 {[%clk 0:00:02]} 41. Rh7 {[%clk 0:00:06]} 1-0


[Site "https://www.chess.com"]

[Event "Titled Tuesday Blitz February 14 Early 2023"]
[White "Skuhala, Barbara"]
[Black "Skvortsov, Andrei"]
[WhiteFideId "14605465"]
[BlackFideId "24108600"]
[WhiteElo "2153"]
[BlackElo "2313"]
[Result "0-1"]
[Round "01"]
[TimeControl "180+2"]
[Date "2023.02.15"]
[WhiteClock "0:00:02"]
[BlackClock "0:00:07"]

1. e4 {[%clk 0:02:59]}  d5 {[%clk 0:03:00]} 2. exd5 {[%clk 0:02:58]}  Qxd5 {[%clk 0:03:00]} 3. d4 {[%clk 0:02:58]}  Nc6 {[%clk 0:02:59]} 4. Nf3 {[%clk 0:02:57]}  e5 {[%clk 0:02:54]} 5. dxe5 {[%clk 0:02:47]}  Qxd1+ {[%clk 0:02:53]} 6. Kxd1 {[%clk 0:02:48]}  Bg4 {[%clk 0:02:53]} 7. Be2 {[%clk 0:02:48]}  O-O-O+ {[%clk 0:02:53]} 8. Ke1 {[%clk 0:02:48]}  Bxf3 {[%clk 0:02:49]} 9. gxf3 {[%clk 0:02:48]}  Nxe5 {[%clk 0:02:42]} 10. Be3 {[%clk 0:02:47]}  Kb8 {[%clk 0:02:35]} 11. Nd2 {[%clk 0:02:46]}  Nf6 {[%clk 0:02:35]} 12. Ne4 {[%clk 0:02:42]}  Nd5 {[%clk 0:02:34]} 13. f4 {[%clk 0:02:32]}  Ng6 {[%clk 0:02:14]} 14. f5 {[%clk 0:02:29]}  Ngf4 {[%clk 0:02:12]} 15. Bf3 {[%clk 0:02:24]}  f6 {[%clk 0:02:08]} 16. a3 {[%clk 0:02:22]}  Nxe3 {[%clk 0:02:07]} 17. fxe3 {[%clk 0:02:22]}  Nd5 {[%clk 0:02:06]} 18. Ke2 {[%clk 0:02:22]}  Be7 {[%clk 0:01:53]} 19. Rhd1 {[%clk 0:02:20]}  c6 {[%clk 0:01:52]} 20. c4 {[%clk 0:02:20]}  Nb6 {[%clk 0:01:52]} 21. b3 {[%clk 0:02:18]}  Rxd1 {[%clk 0:01:53]} 22. Kxd1 {[%clk 0:02:17]}  Rd8+ {[%clk 0:01:52]} 23. Ke2 {[%clk 0:02:16]}  Nd7 {[%clk 0:01:53]} 24. a4 {[%clk 0:02:13]}  Ne5 {[%clk 0:01:52]} 25. Nf2 {[%clk 0:02:05]}  a5 {[%clk 0:01:44]} 26. Rd1 {[%clk 0:02:04]}  Rxd1 {[%clk 0:01:38]} 27. Nxd1 {[%clk 0:02:04]}  Kc7 {[%clk 0:01:39]} 28. e4 {[%clk 0:02:02]}  Kd6 {[%clk 0:01:39]} 29. Ne3 {[%clk 0:01:57]}  Kc5 {[%clk 0:01:38]} 30. Nc2 {[%clk 0:01:56]}  Bd8 {[%clk 0:01:33]} 31. h3 {[%clk 0:01:50]}  Bc7 {[%clk 0:01:32]} 32. Bg2 {[%clk 0:01:50]}  Nf7 {[%clk 0:01:28]} 33. Kd2 {[%clk 0:01:50]}  Bf4+ {[%clk 0:01:27]} 34. Kd3 {[%clk 0:01:50]}  Ne5+ {[%clk 0:01:27]} 35. Ke2 {[%clk 0:01:50]}  Bh6 {[%clk 0:01:12]} 36. Bh1 {[%clk 0:01:45]}  Nf7 {[%clk 0:01:11]} 37. Bg2 {[%clk 0:01:44]}  Nd6 {[%clk 0:01:10]} 38. Kd3 {[%clk 0:01:42]}  Bf4 {[%clk 0:01:06]} 39. Nd4 {[%clk 0:01:36]}  Kb4 {[%clk 0:01:00]} 40. Kc2 {[%clk 0:01:36]}  Bh6 {[%clk 0:00:55]} 41. Ne6 {[%clk 0:01:35]}  b5 {[%clk 0:00:53]} 42. axb5 {[%clk 0:01:29]}  cxb5 {[%clk 0:00:54]} 43. c5 {[%clk 0:01:30]}  Nc8 {[%clk 0:00:54]} 44. c6 {[%clk 0:01:29]}  a4 {[%clk 0:00:51]} 45. bxa4 {[%clk 0:01:29]}  bxa4 {[%clk 0:00:50]} 46. Kb1 {[%clk 0:01:28]}  Kb5 {[%clk 0:00:37]} 47. Ka2 {[%clk 0:01:18]}  Kxc6 {[%clk 0:00:35]} 48. e5+ {[%clk 0:01:18]}  Kb5 {[%clk 0:00:34]} 49. exf6 {[%clk 0:01:18]}  gxf6 {[%clk 0:00:35]} 50. h4 {[%clk 0:01:16]}  Nd6 {[%clk 0:00:34]} 51. Bf1+ {[%clk 0:01:16]}  Kb4 {[%clk 0:00:33]} 52. Bd3 {[%clk 0:01:11]}  Nf7 {[%clk 0:00:24]} 53. Bb1 {[%clk 0:01:09]}  Ne5 {[%clk 0:00:24]} 54. Nc7 {[%clk 0:01:03]}  Kc5 {[%clk 0:00:22]} 55. Ne8 {[%clk 0:01:01]}  Nd7 {[%clk 0:00:22]} 56. Bc2 {[%clk 0:01:00]}  Kb4 {[%clk 0:00:21]} 57. Nd6 {[%clk 0:01:00]}  Bf4 {[%clk 0:00:19]} 58. Ne4 {[%clk 0:00:59]}  Be5 {[%clk 0:00:17]} 59. h5 {[%clk 0:00:58]}  Nb6 {[%clk 0:00:17]} 60. h6 {[%clk 0:00:51]}  Kc4 {[%clk 0:00:18]} 61. Nf2 {[%clk 0:00:49]}  Kd5 {[%clk 0:00:18]} 62. Ng4 {[%clk 0:00:49]}  Bd4 {[%clk 0:00:18]} 63. Ka3 {[%clk 0:00:48]}  Bc5+ {[%clk 0:00:17]} 64. Ka2 {[%clk 0:00:48]}  Be7 {[%clk 0:00:17]} 65. Nf2 {[%clk 0:00:42]}  Kd4 {[%clk 0:00:18]} 66. Bd1 {[%clk 0:00:32]}  Nd5 {[%clk 0:00:15]} 67. Bxa4 {[%clk 0:00:31]}  Nc3+ {[%clk 0:00:14]} 68. Kb3 {[%clk 0:00:31]}  Nxa4 {[%clk 0:00:15]} 69. Kxa4 {[%clk 0:00:31]}  Ke5 {[%clk 0:00:16]} 70. Kb3 {[%clk 0:00:26]}  Kxf5 {[%clk 0:00:16]} 71. Kc3 {[%clk 0:00:26]}  Kf4 {[%clk 0:00:16]} 72. Kd2 {[%clk 0:00:26]}  Kg5 {[%clk 0:00:17]} 73. Ke2 {[%clk 0:00:25]}  Kg6 {[%clk 0:00:15]} 74. Kf3 {[%clk 0:00:25]}  f5 {[%clk 0:00:14]} 75. Ng4 {[%clk 0:00:21]}  Bg5 {[%clk 0:00:14]} 76. Ne5+ {[%clk 0:00:20]}  Kxh6 {[%clk 0:00:15]} 77. Nd3 {[%clk 0:00:18]}  Kg6 {[%clk 0:00:14]} 78. Ne5+ {[%clk 0:00:16]}  Kg7 {[%clk 0:00:12]} 79. Nc6 {[%clk 0:00:16]}  Bf6 {[%clk 0:00:11]} 80. Nb4 {[%clk 0:00:15]}  Kg6 {[%clk 0:00:10]} 81. Nd5 {[%clk 0:00:15]}  Bg5 {[%clk 0:00:11]} 82. Nb6 {[%clk 0:00:13]}  Kf7 {[%clk 0:00:11]} 83. Nc4 {[%clk 0:00:13]}  Ke6 {[%clk 0:00:11]} 84. Nb2 {[%clk 0:00:12]}  Bf6 {[%clk 0:00:10]} 85. Nd1 {[%clk 0:00:12]}  Bd4 {[%clk 0:00:10]} 86. Kg2 {[%clk 0:00:11]}  Kf6 {[%clk 0:00:10]} 87. Kf3 {[%clk 0:00:12]}  Kg5 {[%clk 0:00:11]} 88. Kg2 {[%clk 0:00:11]}  Kf4 {[%clk 0:00:10]} 89. Kf1 {[%clk 0:00:10]}  Kf3 {[%clk 0:00:10]} 90. Nf2 {[%clk 0:00:09]}  h5 {[%clk 0:00:09]} 91. Nd3 {[%clk 0:00:09]}  h4 {[%clk 0:00:07]} 92. Nf2 {[%clk 0:00:09]}  Be3 {[%clk 0:00:06]} 93. Nh3 {[%clk 0:00:09]}  Kg3 {[%clk 0:00:06]} 94. Nf2 {[%clk 0:00:02]}  Bxf2 {[%clk 0:00:07]} 0-1


[Site "https://www.chess.com"]

[Event "Titled Tuesday Blitz February 14 Early 2023"]
[White "Panesso Rivera, Henry"]
[Black "Matveeva, Olga"]
[WhiteFideId "4402707"]
[BlackFideId "24107018"]
[WhiteElo "2342"]
[BlackElo "2128"]
[Result "0-1"]
[Round "01"]
[TimeControl "180+2"]
[Date "2023.02.15"]
[WhiteClock "0:00:13"]
[BlackClock "0:00:05"]

1. Nf3 {[%clk 0:03:00]}  Nf6 {[%clk 0:02:59]} 2. g3 {[%clk 0:02:58]}  d5 {[%clk 0:02:58]} 3. Bg2 {[%clk 0:02:57]}  c6 {[%clk 0:02:57]} 4. O-O {[%clk 0:02:56]}  g6 {[%clk 0:02:56]} 5. b3 {[%clk 0:02:54]}  Bg7 {[%clk 0:02:56]} 6. Bb2 {[%clk 0:02:54]}  O-O {[%clk 0:02:56]} 7. c4 {[%clk 0:02:54]}  Bg4 {[%clk 0:02:53]} 8. h3 {[%clk 0:02:54]}  Bxf3 {[%clk 0:02:52]} 9. Bxf3 {[%clk 0:02:55]}  e6 {[%clk 0:02:51]} 10. d4 {[%clk 0:02:55]}  Nbd7 {[%clk 0:02:50]} 11. e3 {[%clk 0:02:54]}  a5 {[%clk 0:02:47]} 12. Nc3 {[%clk 0:02:54]}  Re8 {[%clk 0:02:26]} 13. Bg2 {[%clk 0:02:52]}  Qb6 {[%clk 0:02:13]} 14. Qd2 {[%clk 0:02:50]}  Rad8 {[%clk 0:02:07]} 15. cxd5 {[%clk 0:02:21]}  exd5 {[%clk 0:02:05]} 16. Na4 {[%clk 0:02:19]}  Qc7 {[%clk 0:01:55]} 17. Bc3 {[%clk 0:02:15]}  b6 {[%clk 0:01:52]} 18. Qc2 {[%clk 0:02:10]}  Ne4 {[%clk 0:01:47]} 19. Rac1 {[%clk 0:02:09]}  Rc8 {[%clk 0:01:39]} 20. Ba1 {[%clk 0:02:07]}  Ndf6 {[%clk 0:01:28]} 21. Qe2 {[%clk 0:01:59]}  Qb7 {[%clk 0:01:19]} 22. Rfe1 {[%clk 0:01:57]}  Nh5 {[%clk 0:01:12]} 23. Rc2 {[%clk 0:01:51]}  f5 {[%clk 0:01:09]} 24. Qf3 {[%clk 0:01:46]}  Nhf6 {[%clk 0:01:06]} 25. Rec1 {[%clk 0:01:45]}  Re6 {[%clk 0:01:05]} 26. a3 {[%clk 0:01:41]}  Nd6 {[%clk 0:01:02]} 27. Bc3 {[%clk 0:01:37]}  Nfe4 {[%clk 0:01:01]} 28. Be1 {[%clk 0:01:38]}  Nb5 {[%clk 0:00:58]} 29. Ra1 {[%clk 0:01:34]}  Rce8 {[%clk 0:00:49]} 30. Qd1 {[%clk 0:01:34]}  Ned6 {[%clk 0:00:44]} 31. Bf1 {[%clk 0:01:33]}  Nxd4 {[%clk 0:00:27]} 32. exd4 {[%clk 0:01:25]}  Rxe1 {[%clk 0:00:27]} 33. Qxe1 {[%clk 0:01:25]}  Rxe1 {[%clk 0:00:27]} 34. Rxe1 {[%clk 0:01:26]}  Bxd4 {[%clk 0:00:24]} 35. Re6 {[%clk 0:01:24]}  Ne4 {[%clk 0:00:17]} 36. Rexc6 {[%clk 0:01:18]}  Bxf2+ {[%clk 0:00:16]} 37. Kg2 {[%clk 0:01:18]}  Bc5 {[%clk 0:00:14]} 38. Bb5 {[%clk 0:01:15]}  d4 {[%clk 0:00:14]} 39. Nxc5 {[%clk 0:01:09]}  Nxc5 {[%clk 0:00:13]} 40. Kh2 {[%clk 0:01:01]}  d3 {[%clk 0:00:12]} 41. Rc4 {[%clk 0:01:00]}  Qe7 {[%clk 0:00:11]} 42. h4 {[%clk 0:00:19]}  Qe2+ {[%clk 0:00:08]} 43. Kh3 {[%clk 0:00:20]}  Qf1+ {[%clk 0:00:08]} 44. Kh2 {[%clk 0:00:20]}  Qf2+ {[%clk 0:00:08]} 45. Kh3 {[%clk 0:00:20]}  d2 {[%clk 0:00:08]} 46. Rc8+ {[%clk 0:00:19]}  Kg7 {[%clk 0:00:08]} 47. Rc7+ {[%clk 0:00:20]}  Kh6 {[%clk 0:00:08]} 48. Rf4 {[%clk 0:00:19]}  Qe3 {[%clk 0:00:06]} 49. Rf1 {[%clk 0:00:13]}  Ne4 {[%clk 0:00:05]} 0-1


[Site "https://www.chess.com"]